[Event "Late-Titled-Tuesday-Blitz-March-19-2024"]
[Site "Chess.com"]
[Date "2024.03.19"]
[Round "1"]
[White "bubeliang"]
[Black "Ticoluis"]
[Result "0-1"]
[WhiteElo "2791"]
[BlackElo "2515"]
[TimeControl "180+1"]
[EndTime "14:05:40 PDT"]
[Termination "Ticoluis won by checkmate"]

1. d4 {[%clk 0:03:00.9]} 1... Nf6 {[%clk 0:02:58.8]} 2. Nc3 {[%clk 0:02:58.2]}
2... d5 {[%clk 0:02:53.5]} 3. Bf4 {[%clk 0:02:56.6]} 3... a6 {[%clk 0:02:51.9]}
4. e3 {[%clk 0:02:56.3]} 4... e6 {[%clk 0:02:51.1]} 5. Nf3 {[%clk 0:02:56]} 5...
c5 {[%clk 0:02:51.5]} 6. Ne5 {[%clk 0:02:55.3]} 6... Nbd7 {[%clk 0:02:50.7]} 7.
dxc5 {[%clk 0:02:54.1]} 7... Bxc5 {[%clk 0:02:49.3]} 8. Bd3 {[%clk 0:02:54]}
8... Nxe5 {[%clk 0:02:48.3]} 9. Bxe5 {[%clk 0:02:54.9]} 9... O-O {[%clk
0:02:47.7]} 10. Qf3 {[%clk 0:02:53.6]} 10... Nd7 {[%clk 0:02:47.3]} 11. Bd4
{[%clk 0:02:48.8]} 11... Bxd4 {[%clk 0:02:45.6]} 12. exd4 {[%clk 0:02:49.7]}
12... b5 {[%clk 0:02:43.6]} 13. O-O {[%clk 0:02:49.2]} 13... Bb7 {[%clk
0:02:43.3]} 14. Ne2 {[%clk 0:02:49]} 14... Qg5 {[%clk 0:02:42.3]} 15. c3 {[%clk
0:02:48.4]} 15... e5 {[%clk 0:02:39.7]} 16. dxe5 {[%clk 0:02:43.1]} 16... Nxe5
{[%clk 0:02:38.3]} 17. Qh3 {[%clk 0:02:42.9]} 17... Nxd3 {[%clk 0:02:35.7]} 18.
Qxd3 {[%clk 0:02:42.8]} 18... d4 {[%clk 0:02:36.3]} 19. Qg3 {[%clk 0:02:37.4]}
19... Qxg3 {[%clk 0:02:34.6]} 20. hxg3 {[%clk 0:02:38.3]} 20... dxc3 {[%clk
0:02:33.6]} 21. Nxc3 {[%clk 0:02:38.9]} 21... Rfe8 {[%clk 0:02:33.3]} 22. Rfe1
{[%clk 0:02:37.9]} 22... f6 {[%clk 0:02:33.1]} 23. a3 {[%clk 0:02:35.8]} 23...
Kf7 {[%clk 0:02:31.3]} 24. f3 {[%clk 0:02:35.3]} 24... Rad8 {[%clk 0:02:29.8]}
25. Rxe8 {[%clk 0:02:33.3]} 25... Kxe8 {[%clk 0:02:28.1]} 26. Re1+ {[%clk
0:02:32.1]} 26... Kf7 {[%clk 0:02:26]} 27. Re2 {[%clk 0:02:32.3]} 27... Bc6
{[%clk 0:02:22.5]} 28. Kf2 {[%clk 0:02:32]} 28... a5 {[%clk 0:02:21.6]} 29. Ne4
{[%clk 0:02:26.3]} 29... Bxe4 {[%clk 0:02:20.4]} 30. fxe4 {[%clk 0:02:27.2]}
30... Ke6 {[%clk 0:02:19.5]} 31. Rc2 {[%clk 0:02:27.2]} 31... Rd3 {[%clk
0:02:16.5]} 32. Rc6+ {[%clk 0:02:24.1]} 32... Kf7 {[%clk 0:02:14.8]} 33. Rc2
{[%clk 0:02:14.6]} 33... Rb3 {[%clk 0:02:13.6]} 34. g4 {[%clk 0:01:49.8]} 34...
Ke6 {[%clk 0:02:13.9]} 35. Kg1 {[%clk 0:01:44.5]} 35... Ke5 {[%clk 0:02:12]} 36.
Rc7 {[%clk 0:01:44.7]} 36... g5 {[%clk 0:02:10.6]} 37. Rxh7 {[%clk 0:01:43.6]}
37... Rxb2 {[%clk 0:02:09]} 38. Ra7 {[%clk 0:01:42.1]} 38... a4 {[%clk
0:02:07.5]} 39. Ra6 {[%clk 0:01:41.6]} 39... Rb3 {[%clk 0:02:03.3]} 40. Rb6
{[%clk 0:01:41.1]} 40... Kxe4 {[%clk 0:02:01.4]} 41. Kf2 {[%clk 0:01:40.4]}
41... Kf4 {[%clk 0:02:00.2]} 42. Rxf6+ {[%clk 0:01:39.2]} 42... Kxg4 {[%clk
0:02:00.6]} 43. Rb6 {[%clk 0:01:39.8]} 43... Kf4 {[%clk 0:01:58.1]} 44. Ke2
{[%clk 0:01:32.4]} 44... Kg3 {[%clk 0:01:56.6]} 45. Kf1 {[%clk 0:01:27.9]} 45...
g4 {[%clk 0:01:56.8]} 46. Rb7 {[%clk 0:01:21.7]} 46... Rb1+ {[%clk 0:01:56.3]}
47. Ke2 {[%clk 0:01:22.3]} 47... Kxg2 {[%clk 0:01:56.2]} 48. Ke3 {[%clk
0:01:20.5]} 48... g3 {[%clk 0:01:55]} 49. Rb6 {[%clk 0:01:20.5]} 49... Rb3+
{[%clk 0:01:54.9]} 50. Ke2 {[%clk 0:01:20.5]} 50... Kh2 {[%clk 0:01:51.8]} 51.
Rh6+ {[%clk 0:01:19.9]} 51... Kg1 {[%clk 0:01:52.1]} 52. Rb6 {[%clk 0:01:19.4]}
52... g2 {[%clk 0:01:51.4]} 53. Rb7 {[%clk 0:01:19.7]} 53... Rh3 {[%clk
0:01:49]} 54. Rxb5 {[%clk 0:01:19]} 54... Kh2 {[%clk 0:01:48]} 55. Rg5 {[%clk
0:01:18.7]} 55... g1=Q {[%clk 0:01:47.2]} 56. Rxg1 {[%clk 0:01:19.6]} 56... Kxg1
{[%clk 0:01:47]} 57. Ke1 {[%clk 0:01:20.5]} 57... Rxa3 {[%clk 0:01:46.5]} 58.
Kd2 {[%clk 0:01:21.4]} 58... Rb3 {[%clk 0:01:46.6]} 59. Kd1 {[%clk 0:01:22.3]}
59... Rb8 {[%clk 0:01:46.2]} 60. Kd2 {[%clk 0:01:23.2]} 60... a3 {[%clk
0:01:46.1]} 61. Kd1 {[%clk 0:01:24.1]} 61... a2 {[%clk 0:01:46.5]} 62. Kc2
{[%clk 0:01:25]} 62... a1=Q {[%clk 0:01:45.9]} 63. Kd3 {[%clk 0:01:24.7]} 63...
Qe5 {[%clk 0:01:44.1]} 64. Kc4 {[%clk 0:01:25.6]} 64... Rc8+ {[%clk 0:01:42.4]}
65. Kb4 {[%clk 0:01:25.8]} 65... Qc5+ {[%clk 0:01:42.1]} 66. Ka4 {[%clk
0:01:26]} 66... Ra8+ {[%clk 0:01:41.4]} 67. Kb3 {[%clk 0:01:26.9]} 67... Ra3+
{[%clk 0:01:41.3]} 68. Kb2 {[%clk 0:01:27.8]} 68... Qc3+ {[%clk 0:01:41]} 69.
Kb1 {[%clk 0:01:28.7]} 69... Ra1# {[%clk 0:01:40.5]} 0-1

[Event "Late-Titled-Tuesday-Blitz-March-19-2024"]
[Site "Chess.com"]
[Date "2024.03.19"]
[Round "1"]
[White "Fonsofan"]
[Black "emeli_chess"]
[Result "1-0"]
[WhiteElo "2738"]
[BlackElo "2419"]
[TimeControl "180+1"]
[EndTime "14:05:50 PDT"]
[Termination "Fonsofan won by resignation"]

1. Nc3 {[%clk 0:02:55]} 1... d5 {[%clk 0:02:57.9]} 2. d4 {[%clk 0:02:55.9]} 2...
Nf6 {[%clk 0:02:55.8]} 3. Bf4 {[%clk 0:02:56.3]} 3... c5 {[%clk 0:02:53.5]} 4.
e4 {[%clk 0:02:55.4]} 4... cxd4 {[%clk 0:02:50.6]} 5. Qxd4 {[%clk 0:02:55.8]}
5... Nc6 {[%clk 0:02:50.4]} 6. Bb5 {[%clk 0:02:56.3]} 6... Bd7 {[%clk
0:02:50.7]} 7. Bxc6 {[%clk 0:02:55.5]} 7... Bxc6 {[%clk 0:02:50.9]} 8. e5 {[%clk
0:02:55.4]} 8... Ne4 {[%clk 0:02:50.9]} 9. Nge2 {[%clk 0:02:49.6]} 9... e6
{[%clk 0:02:47.1]} 10. Nxe4 {[%clk 0:02:40.6]} 10... dxe4 {[%clk 0:02:46.5]} 11.
Qxd8+ {[%clk 0:02:41.5]} 11... Rxd8 {[%clk 0:02:45.7]} 12. Be3 {[%clk
0:02:42.4]} 12... b6 {[%clk 0:02:37.1]} 13. Nd4 {[%clk 0:02:35.3]} 13... Bd7
{[%clk 0:02:19.8]} 14. O-O-O {[%clk 0:02:33.5]} 14... f5 {[%clk 0:02:11.7]} 15.
Rd2 {[%clk 0:02:16.3]} 15... Bb4 {[%clk 0:02:07]} 16. c3 {[%clk 0:02:15.4]}
16... Be7 {[%clk 0:02:03.3]} 17. h4 {[%clk 0:02:15.8]} 17... Kf7 {[%clk
0:01:58.3]} 18. Bg5 {[%clk 0:02:08.9]} 18... h6 {[%clk 0:01:52.4]} 19. Bxe7
{[%clk 0:02:07.2]} 19... Kxe7 {[%clk 0:01:53.3]} 20. h5 {[%clk 0:01:42.5]} 20...
Rc8 {[%clk 0:01:50.2]} 21. Ne2 {[%clk 0:01:32.3]} 21... Rhd8 {[%clk 0:01:41.8]}
22. Rhd1 {[%clk 0:01:28.2]} 22... Be8 {[%clk 0:01:41.1]} 23. Rxd8 {[%clk
0:01:26.6]} 23... Rxd8 {[%clk 0:01:41.3]} 24. Rxd8 {[%clk 0:01:27.2]} 24... Kxd8
{[%clk 0:01:41.4]} 25. Nf4 {[%clk 0:01:27.4]} 25... Ke7 {[%clk 0:01:40.9]} 26.
Kd2 {[%clk 0:01:27.9]} 26... Bf7 {[%clk 0:01:22.5]} 27. c4 {[%clk 0:01:27.6]}
27... Kd7 {[%clk 0:01:22.4]} 28. b4 {[%clk 0:01:26.9]} 28... Kc6 {[%clk
0:01:21.8]} 29. Kc3 {[%clk 0:01:27]} 29... Bg8 {[%clk 0:01:09.6]} 30. b5+ {[%clk
0:01:22.3]} 30... Kc5 {[%clk 0:01:03.2]} 31. Ne2 {[%clk 0:01:20.6]} 31... a6
{[%clk 0:00:31.6]} 32. a4 {[%clk 0:01:17.9]} 1-0

[Event "Late-Titled-Tuesday-Blitz-March-19-2024"]
[Site "Chess.com"]
[Date "2024.03.19"]
[Round "1"]
[White "hell3raiser"]
[Black "AlexTruskavetsky"]
[Result "0-1"]
[WhiteElo "2323"]
[BlackElo "2655"]
[TimeControl "180+1"]
[EndTime "14:05:55 PDT"]
[Termination "AlexTruskavetsky won by resignation"]

1. e4 {[%clk 0:03:00.4]} 1... c5 {[%clk 0:02:59.6]} 2. b3 {[%clk 0:03:00.1]}
2... Nc6 {[%clk 0:02:59.3]} 3. Bb2 {[%clk 0:02:59.9]} 3... e6 {[%clk 0:02:59.8]}
4. Bb5 {[%clk 0:02:59.5]} 4... Nge7 {[%clk 0:02:58.8]} 5. f4 {[%clk 0:02:58]}
5... a6 {[%clk 0:02:58.5]} 6. Bxc6 {[%clk 0:02:57.6]} 6... Nxc6 {[%clk
0:02:59.4]} 7. Nf3 {[%clk 0:02:57.1]} 7... d5 {[%clk 0:03:00.1]} 8. e5 {[%clk
0:02:52.9]} 8... Be7 {[%clk 0:02:59]} 9. O-O {[%clk 0:02:52.6]} 9... O-O {[%clk
0:02:59.1]} 10. Kh1 {[%clk 0:02:52.8]} 10... f6 {[%clk 0:02:58.8]} 11. d3 {[%clk
0:02:50.8]} 11... fxe5 {[%clk 0:02:57.9]} 12. fxe5 {[%clk 0:02:50.8]} 12... Bd7
{[%clk 0:02:57.8]} 13. Nbd2 {[%clk 0:02:50.1]} 13... Qc7 {[%clk 0:02:57.4]} 14.
Qe2 {[%clk 0:02:44.8]} 14... b5 {[%clk 0:02:57.1]} 15. c4 {[%clk 0:02:44.2]}
15... d4 {[%clk 0:02:47.5]} 16. Rae1 {[%clk 0:02:41.8]} 16... Rf5 {[%clk
0:02:47.1]} 17. Bc1 {[%clk 0:02:12]} 17... Raf8 {[%clk 0:02:45.8]} 18. h3 {[%clk
0:02:09.7]} 18... Bc8 {[%clk 0:02:29.3]} 19. Qe4 {[%clk 0:02:09.2]} 19... Bb7
{[%clk 0:02:27.5]} 20. Qg4 {[%clk 0:02:08]} 20... Nb4 {[%clk 0:02:15.7]} 21. Ne4
{[%clk 0:02:00.6]} 21... Nxd3 {[%clk 0:02:15.4]} 22. Bh6 {[%clk 0:01:54.3]}
22... Bd8 {[%clk 0:02:11.1]} 23. Nf6+ {[%clk 0:01:51]} 23... Bxf6 {[%clk
0:02:05.8]} 24. exf6 {[%clk 0:01:51.1]} 24... R5xf6 {[%clk 0:01:58.6]} 25. Rxe6
{[%clk 0:01:45.9]} 25... Bc8 {[%clk 0:01:55.9]} 26. Rxf6 {[%clk 0:01:40.7]}
26... Bxg4 {[%clk 0:01:48.9]} 27. Rxf8+ {[%clk 0:01:40.6]} 27... Kxf8 {[%clk
0:01:49.8]} 28. hxg4 {[%clk 0:01:17.3]} 28... gxh6 {[%clk 0:01:48.7]} 29. Ne5+
{[%clk 0:01:17.2]} 29... Kg7 {[%clk 0:01:47.7]} 30. Nxd3 {[%clk 0:01:17.1]}
30... bxc4 {[%clk 0:01:43.5]} 31. bxc4 {[%clk 0:01:16.9]} 31... Qa5 {[%clk
0:01:43.5]} 32. Rf5 {[%clk 0:01:11.6]} 32... Qxa2 {[%clk 0:01:42.4]} 33. Nxc5
{[%clk 0:01:09.1]} 33... Qxc4 {[%clk 0:01:40.3]} 34. Kh2 {[%clk 0:01:05.9]}
34... d3 {[%clk 0:01:40]} 35. g5 {[%clk 0:00:43.9]} 35... d2 {[%clk 0:01:33.1]}
36. gxh6+ {[%clk 0:00:43.1]} 36... Kg6 {[%clk 0:01:29.2]} 37. Nd7 {[%clk
0:00:21.9]} 37... Kxf5 {[%clk 0:01:23.3]} 0-1

[Event "Late-Titled-Tuesday-Blitz-March-19-2024"]
[Site "Chess.com"]
[Date "2024.03.19"]
[Round "1"]
[White "Franmu14"]
[Black "Supelyel"]
[Result "1-0"]
[WhiteElo "2721"]
[BlackElo "2400"]
[TimeControl "180+1"]
[EndTime "14:06:00 PDT"]
[Termination "Franmu14 won by resignation"]

1. e4 {[%clk 0:03:00.9]} 1... d6 {[%clk 0:02:56.6]} 2. Nc3 {[%clk 0:03:01.8]}
2... e5 {[%clk 0:02:40.5]} 3. d4 {[%clk 0:03:02.7]} 3... Nd7 {[%clk 0:02:39.8]}
4. Be3 {[%clk 0:03:01.4]} 4... Ngf6 {[%clk 0:02:39.8]} 5. f3 {[%clk 0:03:01.6]}
5... Be7 {[%clk 0:02:34.5]} 6. Nge2 {[%clk 0:03:00.6]} 6... c6 {[%clk
0:02:30.3]} 7. Qd2 {[%clk 0:03:01.1]} 7... a6 {[%clk 0:02:28.3]} 8. O-O-O {[%clk
0:03:01.6]} 8... b5 {[%clk 0:02:28.7]} 9. g4 {[%clk 0:02:59.8]} 9... O-O {[%clk
0:02:15]} 10. Ng3 {[%clk 0:02:59.4]} 10... b4 {[%clk 0:02:10.7]} 11. Na4 {[%clk
0:02:58]} 11... d5 {[%clk 0:02:03.2]} 12. g5 {[%clk 0:02:56.7]} 12... Ne8 {[%clk
0:01:59.5]} 13. dxe5 {[%clk 0:02:53.9]} 13... Nxe5 {[%clk 0:01:59.4]} 14. f4
{[%clk 0:02:53.3]} 14... Ng6 {[%clk 0:01:13.6]} 15. Nb6 {[%clk 0:02:48.2]} 15...
Rb8 {[%clk 0:01:13.2]} 16. Nxc8 {[%clk 0:02:47.9]} 16... Qxc8 {[%clk 0:01:14.1]}
17. exd5 {[%clk 0:02:41.3]} 17... cxd5 {[%clk 0:01:13.3]} 18. Qxd5 {[%clk
0:02:42.2]} 18... Nc7 {[%clk 0:01:11.2]} 19. Qe4 {[%clk 0:02:42]} 19... Re8
{[%clk 0:01:09.8]} 20. Qf3 {[%clk 0:02:33.9]} 20... Nb5 {[%clk 0:01:01.3]} 21.
Bxb5 {[%clk 0:02:33.2]} 21... axb5 {[%clk 0:01:02.2]} 22. Rhe1 {[%clk
0:02:28.1]} 22... Qa6 {[%clk 0:01:01.5]} 23. Kb1 {[%clk 0:02:26.1]} 23... Ra8
{[%clk 0:00:54.4]} 24. Qd5 {[%clk 0:02:26]} 24... Red8 {[%clk 0:00:54.9]} 25.
Qb3 {[%clk 0:02:25.8]} 25... Rdc8 {[%clk 0:00:52.1]} 26. Nf5 {[%clk 0:02:23.2]}
26... Bf8 {[%clk 0:00:51.2]} 27. h4 {[%clk 0:02:22.1]} 27... Rc4 {[%clk
0:00:38.4]} 28. Rd4 {[%clk 0:02:17.2]} 28... Qc8 {[%clk 0:00:35.3]} 29. h5
{[%clk 0:01:57.3]} 29... Qxf5 {[%clk 0:00:22.3]} 30. hxg6 {[%clk 0:01:57]} 30...
hxg6 {[%clk 0:00:20]} 31. Rxc4 {[%clk 0:01:56.5]} 31... bxc4 {[%clk 0:00:20.9]}
32. Qxc4 {[%clk 0:01:56.9]} 32... Rc8 {[%clk 0:00:21.3]} 33. Qd3 {[%clk
0:01:56.9]} 33... Qa5 {[%clk 0:00:20.6]} 34. Bd4 {[%clk 0:01:54.8]} 34... Ra8
{[%clk 0:00:20.6]} 35. Qb3 {[%clk 0:01:48]} 35... Qf5 {[%clk 0:00:20.5]} 36. Be5
{[%clk 0:01:46.9]} 36... Re8 {[%clk 0:00:17.3]} 37. Rh1 {[%clk 0:01:46]} 37...
Bd6 {[%clk 0:00:16.3]} 38. Bxd6 {[%clk 0:01:38.6]} 38... Re2 {[%clk 0:00:15.3]}
39. Qc4 {[%clk 0:01:34]} 39... Re8 {[%clk 0:00:10.3]} 40. Qd3 {[%clk 0:01:32]}
40... b3 {[%clk 0:00:08.8]} 41. Qxf5 {[%clk 0:01:31.5]} 1-0

[Event "Late-Titled-Tuesday-Blitz-March-19-2024"]
[Site "Chess.com"]
[Date "2024.03.19"]
[Round "1"]
[White "joksijoksi"]
[Black "cthake"]
[Result "1-0"]
[WhiteElo "2575"]
[BlackElo "1822"]
[TimeControl "180+1"]
[EndTime "14:06:02 PDT"]
[Termination "joksijoksi won on time"]

1. d4 {[%clk 0:02:58.9]} 1... Nf6 {[%clk 0:02:58.6]} 2. c4 {[%clk 0:02:57.4]}
2... e6 {[%clk 0:02:58.4]} 3. Nf3 {[%clk 0:02:54.8]} 3... b6 {[%clk 0:02:56.8]}
4. g3 {[%clk 0:02:53.9]} 4... Bb7 {[%clk 0:02:56.5]} 5. Bg2 {[%clk 0:02:54.3]}
5... Bb4+ {[%clk 0:02:55.8]} 6. Bd2 {[%clk 0:02:53.1]} 6... Bxd2+ {[%clk
0:02:53.7]} 7. Qxd2 {[%clk 0:02:49.7]} 7... O-O {[%clk 0:02:54.2]} 8. Nc3 {[%clk
0:02:49.4]} 8... d5 {[%clk 0:02:49.1]} 9. cxd5 {[%clk 0:02:48.6]} 9... Nxd5
{[%clk 0:02:43.1]} 10. O-O {[%clk 0:02:47.9]} 10... Nxc3 {[%clk 0:02:40]} 11.
Qxc3 {[%clk 0:02:45.3]} 11... Nd7 {[%clk 0:02:39.6]} 12. Rfd1 {[%clk 0:02:43.2]}
12... Nf6 {[%clk 0:02:38.4]} 13. Rac1 {[%clk 0:02:41.5]} 13... Rc8 {[%clk
0:02:37.1]} 14. Ne5 {[%clk 0:02:39.1]} 14... Nd5 {[%clk 0:02:28.3]} 15. Qa3
{[%clk 0:02:34.7]} 15... Re8 {[%clk 0:01:35.2]} 16. Nc6 {[%clk 0:02:32.3]} 16...
Bxc6 {[%clk 0:01:30.8]} 17. Rxc6 {[%clk 0:02:33.2]} 17... a5 {[%clk 0:01:24.9]}
18. e4 {[%clk 0:02:29.6]} 18... Nb4 {[%clk 0:01:22.9]} 19. Rcc1 {[%clk
0:02:30.1]} 19... Qe7 {[%clk 0:01:14.8]} 20. Qb3 {[%clk 0:02:28.5]} 20... Red8
{[%clk 0:01:05.6]} 21. a3 {[%clk 0:02:26.7]} 21... Na6 {[%clk 0:01:03.7]} 22.
Qb5 {[%clk 0:02:18.4]} 22... Nb8 {[%clk 0:01:00]} 23. d5 {[%clk 0:02:14.9]}
23... exd5 {[%clk 0:00:56.5]} 24. exd5 {[%clk 0:02:15.8]} 24... Rd6 {[%clk
0:00:38]} 25. Re1 {[%clk 0:02:12]} 25... Qd8 {[%clk 0:00:24.1]} 26. b4 {[%clk
0:02:06.7]} 26... axb4 {[%clk 0:00:23.2]} 27. axb4 {[%clk 0:02:07.6]} 27... g6
{[%clk 0:00:20.4]} 28. Ra1 {[%clk 0:01:59.3]} 28... f5 {[%clk 0:00:19.8]} 29.
Re6 {[%clk 0:01:55.4]} 29... Rxe6 {[%clk 0:00:18.4]} 30. dxe6 {[%clk 0:01:56.3]}
30... Qe8 {[%clk 0:00:17.6]} 31. Qc4 {[%clk 0:01:53.8]} 31... Qe7 {[%clk
0:00:16.9]} 32. Rd1 {[%clk 0:01:52.1]} 32... c5 {[%clk 0:00:15.9]} 33. b5 {[%clk
0:01:50.8]} 33... Kg7 {[%clk 0:00:14.2]} 34. Qc3+ {[%clk 0:01:47.5]} 34... Kg8
{[%clk 0:00:12.8]} 35. Qe5 {[%clk 0:01:48]} 35... Rc7 {[%clk 0:00:06.1]} 36. Ra1
{[%clk 0:01:39.6]} 36... Rc8 {[%clk 0:00:03.6]} 37. Bd5 {[%clk 0:01:36.6]} 37...
Re8 {[%clk 0:00:02.4]} 38. Ra7 {[%clk 0:01:32.3]} 1-0

[Event "Late-Titled-Tuesday-Blitz-March-19-2024"]
[Site "Chess.com"]
[Date "2024.03.19"]
[Round "1"]
[White "Zhigalko_Sergei"]
[Black "Sinquefield"]
[Result "1-0"]
[WhiteElo "2881"]
[BlackElo "2512"]
[TimeControl "180+1"]
[EndTime "14:06:03 PDT"]
[Termination "Zhigalko_Sergei won by resignation"]

1. g4 {[%clk 0:03:00.9]} 1... e5 {[%clk 0:02:56.4]} 2. c4 {[%clk 0:02:54.2]}
2... d5 {[%clk 0:02:55.1]} 3. cxd5 {[%clk 0:02:54.1]} 3... Qxd5 {[%clk 0:02:56]}
4. Nf3 {[%clk 0:02:53.8]} 4... Bxg4 {[%clk 0:02:53.6]} 5. Nc3 {[%clk 0:02:54.3]}
5... Qe6 {[%clk 0:02:51.7]} 6. Ng5 {[%clk 0:02:34.4]} 6... Qd7 {[%clk
0:02:47.6]} 7. Qb3 {[%clk 0:02:26.9]} 7... c6 {[%clk 0:02:42.8]} 8. Rg1 {[%clk
0:02:23.4]} 8... Nf6 {[%clk 0:02:25.5]} 9. d3 {[%clk 0:02:11.4]} 9... h6 {[%clk
0:02:22.5]} 10. Nge4 {[%clk 0:02:11.5]} 10... Be6 {[%clk 0:02:13.5]} 11. Qc2
{[%clk 0:01:29.1]} 11... Nxe4 {[%clk 0:02:09.7]} 12. Nxe4 {[%clk 0:01:30]} 12...
Na6 {[%clk 0:02:08.8]} 13. a3 {[%clk 0:01:28.9]} 13... f5 {[%clk 0:02:08.1]} 14.
Nd2 {[%clk 0:01:24.7]} 14... Nc7 {[%clk 0:01:59.9]} 15. Nc4 {[%clk 0:01:24.8]}
15... Bxc4 {[%clk 0:01:46.9]} 16. Qxc4 {[%clk 0:01:24.3]} 16... Qd5 {[%clk
0:01:44.6]} 17. Qh4 {[%clk 0:01:16.1]} 17... Ne6 {[%clk 0:01:40.7]} 18. Qh5+
{[%clk 0:01:11.4]} 18... Kd8 {[%clk 0:01:28.1]} 19. e3 {[%clk 0:01:05.3]} 19...
e4 {[%clk 0:01:21.4]} 20. Bd2 {[%clk 0:00:58.7]} 20... Ng5 {[%clk 0:01:12.2]}
21. Rxg5 {[%clk 0:00:56.1]} 21... exd3 {[%clk 0:01:05.5]} 22. Rxf5 {[%clk
0:00:53]} 22... Qe6 {[%clk 0:01:02.1]} 23. Re5 {[%clk 0:00:48.3]} 23... Qd7
{[%clk 0:00:59.2]} 24. Bh3 {[%clk 0:00:43.8]} 24... Qd6 {[%clk 0:00:54.4]} 25.
Re8+ {[%clk 0:00:32.4]} 25... Kc7 {[%clk 0:00:53.5]} 26. Rxa8 {[%clk 0:00:28.7]}
26... g6 {[%clk 0:00:49.7]} 27. Rc8+ {[%clk 0:00:25.7]} 1-0

[Event "Late-Titled-Tuesday-Blitz-March-19-2024"]
[Site "Chess.com"]
[Date "2024.03.19"]
[Round "1"]
[White "Legendinunknown"]
[Black "Eloist"]
[Result "1-0"]
[WhiteElo "2841"]
[BlackElo "2493"]
[TimeControl "180+1"]
[EndTime "14:06:04 PDT"]
[Termination "Legendinunknown won on time"]

1. d4 {[%clk 0:03:00.9]} 1... e6 {[%clk 0:02:49.1]} 2. e4 {[%clk 0:02:55.5]}
2... d5 {[%clk 0:02:48.4]} 3. Nc3 {[%clk 0:02:55.4]} 3... Nf6 {[%clk 0:02:47.4]}
4. e5 {[%clk 0:02:55.3]} 4... Nfd7 {[%clk 0:02:47.3]} 5. Nce2 {[%clk 0:02:56]}
5... c5 {[%clk 0:02:46.5]} 6. c3 {[%clk 0:02:55.9]} 6... Nc6 {[%clk 0:02:46.6]}
7. Nf3 {[%clk 0:02:55.5]} 7... Be7 {[%clk 0:02:46.1]} 8. a3 {[%clk 0:02:55.1]}
8... O-O {[%clk 0:02:43.1]} 9. g3 {[%clk 0:02:54.3]} 9... b5 {[%clk 0:02:39.6]}
10. h4 {[%clk 0:02:51.1]} 10... a5 {[%clk 0:02:38.1]} 11. Bh3 {[%clk 0:02:50.5]}
11... Rb8 {[%clk 0:02:35.4]} 12. O-O {[%clk 0:02:50.2]} 12... b4 {[%clk
0:02:35.2]} 13. Nf4 {[%clk 0:02:49.3]} 13... bxa3 {[%clk 0:02:29.2]} 14. bxa3
{[%clk 0:02:47.9]} 14... cxd4 {[%clk 0:02:23.9]} 15. cxd4 {[%clk 0:02:48.8]}
15... Nb6 {[%clk 0:02:17.8]} 16. h5 {[%clk 0:02:44.6]} 16... Nc4 {[%clk
0:02:05.2]} 17. h6 {[%clk 0:02:43.4]} 17... g6 {[%clk 0:02:05.2]} 18. Kg2 {[%clk
0:02:38]} 18... Bd7 {[%clk 0:01:49.8]} 19. Rh1 {[%clk 0:02:35]} 19... a4 {[%clk
0:01:49]} 20. Ra2 {[%clk 0:02:30.8]} 20... Rb3 {[%clk 0:01:45.9]} 21. Nd3 {[%clk
0:02:27]} 21... Qb6 {[%clk 0:01:32.9]} 22. Nc5 {[%clk 0:02:09.4]} 22... Bxc5
{[%clk 0:01:19.8]} 23. dxc5 {[%clk 0:02:10.3]} 23... Qxc5 {[%clk 0:01:18.9]} 24.
Bf4 {[%clk 0:02:10.1]} 24... Rfb8 {[%clk 0:00:58.3]} 25. Rf1 {[%clk 0:02:06]}
25... d4 {[%clk 0:00:50.8]} 26. Ng5 {[%clk 0:02:03.7]} 26... Qd5+ {[%clk
0:00:48.7]} 27. Kh2 {[%clk 0:02:02]} 27... N6xe5 {[%clk 0:00:34.5]} 28. Bg2
{[%clk 0:02:01.2]} 28... Qc5 {[%clk 0:00:25.6]} 29. Ne4 {[%clk 0:01:59.3]} 29...
Qe7 {[%clk 0:00:19.6]} 30. Qxd4 {[%clk 0:01:57.4]} 30... Rd3 {[%clk 0:00:17.1]}
31. Qa7 {[%clk 0:01:45.3]} 31... Nc6 {[%clk 0:00:15.3]} 32. Qa6 {[%clk 0:01:40]}
32... e5 {[%clk 0:00:11.4]} 33. Bg5 {[%clk 0:01:39]} 33... Qe6 {[%clk
0:00:06.7]} 34. Nf6+ {[%clk 0:01:38.9]} 34... Kh8 {[%clk 0:00:06.8]} 35. Nxd7
{[%clk 0:01:38.9]} 35... Rxd7 {[%clk 0:00:07]} 36. Qxc6 {[%clk 0:01:38.3]} 36...
Qxc6 {[%clk 0:00:05.3]} 37. Bxc6 {[%clk 0:01:39.2]} 37... Rd6 {[%clk 0:00:05]}
38. Bg2 {[%clk 0:01:38.9]} 38... f6 {[%clk 0:00:05.1]} 39. Be3 {[%clk
0:01:38.2]} 39... Rb3 {[%clk 0:00:04.4]} 40. Rc1 {[%clk 0:01:37.2]} 1-0

[Event "Late-Titled-Tuesday-Blitz-March-19-2024"]
[Site "Chess.com"]
[Date "2024.03.19"]
[Round "1"]
[White "ameetghasi100"]
[Black "sorch29"]
[Result "1-0"]
[WhiteElo "2797"]
[BlackElo "2475"]
[TimeControl "180+1"]
[EndTime "14:06:06 PDT"]
[Termination "ameetghasi100 won by resignation"]

1. b3 {[%clk 0:02:58.8]} 1... Nf6 {[%clk 0:02:53.1]} 2. Bb2 {[%clk 0:02:59.7]}
2... g6 {[%clk 0:02:53.3]} 3. e3 {[%clk 0:03:00]} 3... Bg7 {[%clk 0:02:52.7]} 4.
d4 {[%clk 0:03:00.9]} 4... O-O {[%clk 0:02:53.1]} 5. Nf3 {[%clk 0:03:01.8]} 5...
b6 {[%clk 0:02:51.3]} 6. Be2 {[%clk 0:03:02.7]} 6... Bb7 {[%clk 0:02:51.9]} 7.
O-O {[%clk 0:03:02]} 7... c5 {[%clk 0:02:52.1]} 8. c4 {[%clk 0:03:01.6]} 8...
cxd4 {[%clk 0:02:46.8]} 9. Nxd4 {[%clk 0:02:59.2]} 9... Nc6 {[%clk 0:02:46.4]}
10. Bf3 {[%clk 0:02:58.4]} 10... a6 {[%clk 0:02:39.2]} 11. Nc3 {[%clk
0:02:52.5]} 11... Qc7 {[%clk 0:02:38.7]} 12. Rc1 {[%clk 0:02:43.5]} 12... Nxd4
{[%clk 0:02:38.3]} 13. Bxb7 {[%clk 0:02:40.8]} 13... Qxb7 {[%clk 0:02:33]} 14.
Qxd4 {[%clk 0:02:38.5]} 14... Ne4 {[%clk 0:01:44.4]} 15. Qxe4 {[%clk 0:01:37.1]}
15... Qxe4 {[%clk 0:01:41.6]} 16. Nxe4 {[%clk 0:01:38]} 16... Bxb2 {[%clk
0:01:41.9]} 17. Rc2 {[%clk 0:01:38.6]} 17... Bg7 {[%clk 0:01:40.6]} 18. Rd1
{[%clk 0:01:39.5]} 18... d6 {[%clk 0:01:40.1]} 19. Kf1 {[%clk 0:01:38.5]} 19...
Rfc8 {[%clk 0:01:35.5]} 20. Ke2 {[%clk 0:01:30.5]} 20... Rc7 {[%clk 0:01:19.4]}
21. g4 {[%clk 0:01:26.3]} 21... Rac8 {[%clk 0:01:19.2]} 22. g5 {[%clk
0:01:25.2]} 22... Kf8 {[%clk 0:01:14.1]} 23. h4 {[%clk 0:01:23.6]} 23... h5
{[%clk 0:01:05.7]} 24. Rcd2 {[%clk 0:01:22.1]} 24... Ke8 {[%clk 0:01:01]} 25.
Rd5 {[%clk 0:01:21.2]} 25... Rc6 {[%clk 0:00:38.6]} 26. f4 {[%clk 0:01:20.3]}
26... Kd7 {[%clk 0:00:26.3]} 27. a4 {[%clk 0:01:19.3]} 27... Kc7 {[%clk
0:00:22.3]} 28. f5 {[%clk 0:00:58.5]} 28... gxf5 {[%clk 0:00:20.2]} 29. Rxf5
{[%clk 0:00:57.4]} 29... Rf8 {[%clk 0:00:19.8]} 30. Rdf1 {[%clk 0:00:57.4]} 1-0